[Event "Polish University-ch Teams 2024"]
[Site "Lublin"]
[Date "2024.02.24"]
[Round "2.16"]
[White "Brozyna, Mateusz"]
[Black "Malek, Szymon"]
[Result "1-0"]
[ECO "C47"]
[WhiteElo "2259"]
[BlackElo "1604"]
[Annotator "TA"]
[PlyCount "87"]
[EventDate "2024.02.22"]
[EventType "team-tourn"]
[EventCountry "POL"]
[SourceTitle "playchess.com"]
[Source "ChessBase"]
[SourceQuality "1"]
[TimeControl "900+5"]

{[%evp 9,87,31,33,34,30,37,35,35,29,33,254,254,414,412,401,390,364,364,426,414,424,366,361,357,399,298,285,277,253,222,219,222,241,234,253,242,261,258,256,254,254,257,310,321,304,211,207,211,350,246,258,227,345,343,622,619,851,825,815,683,692,706,743,514,645,654,1019,1021,1012,1008,1529,1526,1192,990,29984,29985,29985,29986,29988,29989]} 1. e4 {[%emt 0:00:01]} e5 {[%emt 0:00:02]} 2. Nf3 {[%emt 0:00:01]} Nf6 {[%emt 0:00:02]} 3. Nc3 {[%emt 0:00:10]} Nc6 {[%emt 0:00:02]} 4. a3 {[%emt 0:00:11]} a6 {[%emt 0:00:47]} 5. d4 {[%emt 0:00:08]} exd4 {[%emt 0:00:08]} 6. Nxd4 {[%emt 0:00:02]} Bc5 {[%emt 0:00:10]} 7. Be3 {[%emt 0:00:02]} Nxd4 {[%emt 0:00:44]} 8. Bxd4 {[%emt 0:00:03] White is slightly better.} Qe7 {[%emt 0:00:04]} 9. Be2 {[%emt 0:01:18] [#] Strongly threatening e5.} b6 $2 {[%emt 0:01:24]} ({Black should play} 9... d6 $14) 10. e5 $18 {[%emt 0:00:24][%cal Be4e5,Be5e6][%mdl 32]} Bxd4 $2 {[%emt 0:02:19]} (10... Ng8 {was called for.} 11. Nd5 Qd8) 11. Qxd4 {[%emt 0:00:05]} Ng8 {[%emt 0:01:26]} 12. Nd5 {[%emt 0:00:50][%csl LRc7,LRe7]} Qd8 {[%emt 0:00:01]} 13. O-O-O {[%emt 0:00:28][%cal Oe5e6] Black must now prevent e6!} Ne7 {[%emt 0:01:31] [#]} 14. e6 $1 {[%emt 0:00:19][%mdl 512]} O-O {[%emt 0:02:45]} 15. Nxe7+ {[%emt 0:01:34]} Qxe7 {[%emt 0:00:13]} 16. Bf3 {[%emt 0:00:03] Black is weak on the light squares} ({Weaker is} 16. exd7 Bxd7 17. Bxa6 (17. Qxd7 Qxe2 18. Rd2 Qe5 $11) 17... Rxa6 $16) 16... c5 {[%emt 0:02:32]} 17. Qd6 {[%emt 0:04:52]} Qxd6 {[%emt 0:01:06]} 18. Rxd6 {[%emt 0:00:02]} Ra7 {[%emt 0:00:18]} 19. exf7+ {[%emt 0:00:34]} (19. Rxb6 $6 fxe6 20. Re1 c4 $16) 19... Kxf7 {[%emt 0:00:02]} 20. Rxb6 {[%emt 0:00:05]} Re8 {[%emt 0:00:26]} 21. Rd1 {[%emt 0:00:30]} Rc7 {[%emt 0:00:16]} 22. c4 {[%emt 0:00:36]} Re5 {[%emt 0:00:15]} 23. Kc2 {[%emt 0:00:11]} Ke7 {[%emt 0:00:10]} 24. Kc3 {[%emt 0:00:17]} Re6 {[%emt 0:00:06]} 25. Rb8 {[%emt 0:00:25]} ({Don't take} 25. Rxe6+ $6 dxe6 26. b4 Bd7 $16) 25... Rd6 {[%emt 0:00:12]} 26. Bd5 {[%emt 0:00:05]} Rf6 {[%emt 0:00:03]} 27. Re1+ {[%emt 0:00:08]} Kd8 {[%emt 0:00:09]} 28. f3 {[%emt 0:00:13]} a5 {[%emt 0:00:01]} (28... Ra7 {might work better.} 29. b4 cxb4+ 30. Rxb4 (30. axb4 Rh6 $18) 30... Rg6) 29. Re4 {[%emt 0:00:28]} Ra7 {[%emt 0:00:06]} 30. Rh4 {[%emt 0:00:10]} Kc7 {[%emt 0:00:00]} (30... h6 $142 31. Re4 g5) 31. Rb5 {[%emt 0:00:02]} d6 {[%emt 0:00:09]} (31... h6 32. Rxc5+ Kd8) 32. Rxh7 {[%emt 0:00:05]} Rg6 {[%emt 0:00:01]} 33. g4 {[%emt 0:00:06]} Ba6 {[%emt 0:00:01]} 34. Rxa5 {[%emt 0:00:02]} Kb6 {[%emt 0:00:09]} 35. b4 {[%emt 0:00:03]} Re7 {[%emt 0:00:06]} 36. Be4 {[%emt 0:00:05]} Rg5 {[%emt 0:00:06]} 37. h4 {[%emt 0:00:39][%cal Bh2h4,Bh4h5,Bh5h6,Bh6g7][%mdl 32]} cxb4+ {[%emt 0:00:01]} 38. axb4 {[%emt 0:00:05]} Rxa5 {[%emt 0:00:09]} 39. bxa5+ {[%emt 0:00:02]} Kxa5 {[%emt 0:00:02] KRB-KRB} 40. h5 {[%emt 0:00:12]} Rc7 {[%emt 0:00:13]} 41. Bd5 {[%emt 0:00:03] Intending h6 and mate.} Re7 {[%emt 0:00:07]} 42. h6 {[%emt 0:00:04] White mates.} Re3+ {[%emt 0:00:04]} 43. Kd4 {[%emt 0:02:57]} Re1 {[%emt 0:00:02]} 44. hxg7 {[%emt 0:00:00] White took control after the opening.   Weighted Error Value: White=0.35/Black=0.55.  Loses game:     	---       	Black=1      Mistake:       	---       	Black=4      Inaccurate:     	White=1     	Black=2      OK:         	White=9     	Black=9      Best:        	White=4     	Black=3} 1-0

[Event "Polish University-ch Teams 2024"]
[Site "Lublin"]
[Date "2024.02.24"]
[Round "2.17"]
[White "Zahorski, Bartosz"]
[Black "Hadrian, Patryk"]
[Result "1/2-1/2"]
[ECO "B28"]
[WhiteElo "1396"]
[BlackElo "1658"]
[Annotator "NA"]
[PlyCount "69"]
[EventDate "2024.02.22"]
[EventType "team-tourn"]
[EventCountry "POL"]
[SourceTitle "playchess.com"]
[Source "ChessBase"]
[SourceQuality "1"]
[TimeControl "900+5"]

{[%evp 0,69,19,38,72,69,86,56,53,38,42,0,17,-25,68,57,59,68,76,77,62,57,67,60,91,91,87,47,55,48,51,50,53,50,56,52,80,35,41,27,21,17,3,-3,8,2,2,0,-9,-16,-18,-13,13,6,6,13,16,16,0,0,0,-58,29,21,6,-14,-3,0,29,1,-21,0]} 1. e4 {[%emt 0:00:02]} c5 {[%emt 0:00:01]} 2. Nf3 {[%emt 0:00:01]} a6 {[%emt 0:00:01]} 3. d4 {[%emt 0:00:06]} cxd4 {[%emt 0:00:02]} 4. Nxd4 {[%emt 0:00:02]} Nf6 {[%emt 0:00:00]} 5. Bd3 {[%emt 0:00:28]} e5 {[%emt 0:00:14]} 6. Nf3 {[%emt 0:00:20]} Qc7 {[%emt 0:01:14]} 7. O-O {[%emt 0:00:09]} Be7 {[%emt 0:00:21]} 8. c4 {[%emt 0:00:51]} O-O {[%emt 0:00:48]} 9. Nc3 {[%emt 0:00:04]} d6 {[%emt 0:00:21]} 10. h3 {[%emt 0:00:03]} Be6 {[%emt 0:00:30]} 11. Qe2 {[%emt 0:01:43]} Nc6 {[%emt 0:01:19]} 12. Nd5 {[%emt 0:01:19]} Bxd5 {[%emt 0:00:53]} 13. cxd5 {[%emt 0:00:45]} Nb4 {[%emt 0:00:37]} 14. Be3 {[%emt 0:00:35]} Nxd3 {[%emt 0:00:31]} 15. Qxd3 {[%emt 0:00:03]} Rac8 {[%emt 0:00:28]} 16. Rac1 {[%emt 0:00:20]} Qa5 {[%emt 0:00:26]} 17. a3 {[%emt 0:00:36]} Qa4 {[%emt 0:00:53]} 18. Bg5 {[%emt 0:00:24]} h6 {[%emt 0:00:44]} 19. Bxf6 {[%emt 0:00:02]} Bxf6 {[%emt 0:00:03]} 20. b4 {[%emt 0:01:58]} Qd7 {[%emt 0:01:06]} 21. Qd2 {[%emt 0:00:28]} Rxc1 {[%emt 0:00:26]} 22. Rxc1 {[%emt 0:00:01]} Rc8 {[%emt 0:00:01]} 23. Ne1 {[%emt 0:01:05]} Bg5 {[%emt 0:00:54]} 24. Rxc8+ {[%emt 0:00:02]} Qxc8 {[%emt 0:00:01]} 25. Qc2 {[%emt 0:00:01]} Qd7 {[%emt 0:00:35]} 26. Nf3 {[%emt 0:00:55]} Bd8 {[%emt 0:00:23]} 27. a4 {[%emt 0:00:45]} Bb6 {[%emt 0:00:21]} 28. Nd2 {[%emt 0:01:32]} g6 {[%emt 0:00:58]} 29. Nc4 {[%emt 0:00:33]} Bd4 {[%emt 0:00:12]} 30. Qb3 {[%emt 0:00:53]} b6 {[%emt 0:01:25]} 31. b5 {[%emt 0:00:11]} a5 {[%emt 0:00:16]} 32. Qc2 {[%emt 0:00:16]} Qc7 {[%emt 0:00:38]} 33. Ne3 {[%emt 0:00:20]} Bc5 {[%emt 0:00:10]} 34. Kh1 {[%emt 0:00:22]} Qe7 {[%emt 0:00:04]} 35. Qe2 {[%emt 0:00:22]} 1/2-1/2

[Event "Polish University-ch Teams 2024"]
[Site "Lublin"]
[Date "2024.02.24"]
[Round "2.18"]
[White "Adamczyk, Zuzanna"]
[Black "Czarniecka, Aleksandra"]
[Result "1/2-1/2"]
[ECO "B48"]
[WhiteElo "1970"]
[BlackElo "1961"]
[Annotator "NA RC"]
[PlyCount "111"]
[EventDate "2024.02.22"]
[EventType "team-tourn"]
[EventCountry "POL"]
[SourceTitle "playchess.com"]
[Source "ChessBase"]
[SourceQuality "1"]
[TimeControl "900+5"]

1. e4 {[%emt 0:00:03]} c5 {[%emt 0:00:00]} 2. Nf3 {[%emt 0:00:02]} d6 {[%emt 0:00:01]} 3. d4 {[%emt 0:00:02]} cxd4 {[%emt 0:00:01]} 4. Nxd4 {[%emt 0:00:01]} Nf6 {[%emt 0:00:02]} 5. Nc3 {[%emt 0:00:02]} a6 {[%emt 0:00:22]} 6. f4 {[%emt 0:00:09]} e6 {[%emt 0:00:06]} 7. Be2 {[%emt 0:01:37]} Nc6 {[%emt 0:00:10]} 8. Be3 {[%emt 0:00:24]} Be7 {[%emt 0:00:02]} 9. O-O {[%emt 0:00:13]} O-O {[%emt 0:00:02]} 10. Kh1 {[%emt 0:00:49]} Qc7 {[%emt 0:00:24]} 11. a3 {[%emt 0:00:35]} Bd7 {[%emt 0:00:03]} 12. Qe1 {[%emt 0:00:22]} Nxd4 {[%emt 0:01:29]} 13. Bxd4 {[%emt 0:00:03]} Bc6 {[%emt 0:00:04]} 14. Bd3 {[%emt 0:00:27]} e5 {[%emt 0:01:55]} 15. fxe5 {[%emt 0:02:08]} dxe5 {[%emt 0:00:01]} 16. Qg3 {[%emt 0:00:10]} Nd7 {[%emt 0:00:05]} 17. Be3 {[%emt 0:00:48]} Qd6 {[%emt 0:01:37]} 18. Nd5 {[%emt 0:01:14]} Rfe8 {[%emt 0:02:49]} 19. Nxe7+ {[%emt 0:01:54]} Rxe7 {[%emt 0:00:19]} 20. Bc4 {[%emt 0:02:09]} Bxe4 {[%emt 0:02:49]} 21. Bg5 {[%emt 0:00:22]} Bg6 {[%emt 0:02:35]} 22. Bxe7 {[%emt 0:00:55]} Qxe7 {[%emt 0:00:01]} 23. Rae1 {[%emt 0:00:48]} Rc8 {[%emt 0:00:13]} 24. Bd3 {[%emt 0:00:05]} e4 {[%emt 0:00:29]} 25. Qf4 {[%emt 0:00:35]} Nf6 {[%emt 0:00:03]} 26. c4 {[%emt 0:00:22]} Qc5 {[%emt 0:00:32]} 27. Be2 {[%emt 0:00:14]} h6 {[%emt 0:00:01]} 28. b4 {[%emt 0:00:13]} Qd4 {[%emt 0:00:17]} 29. Qg3 {[%emt 0:00:02]} Nh5 {[%emt 0:00:21]} 30. Bxh5 {[%emt 0:00:02]} Bxh5 {[%emt 0:00:01]} 31. c5 {[%emt 0:00:02]} Re8 {[%emt 0:00:24]} 32. Qe3 {[%emt 0:00:02]} Qxe3 {[%emt 0:00:08]} 33. Rxe3 {[%emt 0:00:01]} Bg6 {[%emt 0:00:05]} 34. g4 {[%emt 0:00:03]} h5 {[%emt 0:00:02]} 35. h3 {[%emt 0:00:01]} hxg4 {[%emt 0:00:01]} 36. hxg4 {[%emt 0:00:01]} f6 {[%emt 0:00:01]} 37. Kg2 {[%emt 0:00:02]} Bf7 {[%emt 0:00:01]} 38. Rc1 {[%emt 0:00:02]} Bd5 {[%emt 0:00:01]} 39. Kg3 {[%emt 0:00:02]} Bc6 {[%emt 0:00:01]} 40. Rd1 {[%emt 0:00:05]} Kf7 {[%emt 0:00:02]} 41. Rd6 {[%emt 0:00:03]} Kg6 {[%emt 0:00:06]} 42. Kf4 {[%emt 0:00:02]} Rc8 {[%emt 0:00:11]} 43. Re1 {[%emt 0:00:28]} Kf7 {[%emt 0:00:07]} 44. g5 {[%emt 0:00:12]} Rh8 {[%emt 0:00:06]} 45. gxf6 {[%emt 0:00:07]} gxf6 {[%emt 0:00:01]} 46. Rg1 {[%emt 0:00:23]} Rh3 {[%emt 0:00:08]} 47. Rg3 {[%emt 0:00:04]} Rxg3 {[%emt 0:00:11]} 48. Kxg3 {[%emt 0:00:01]} Kg6 {[%emt 0:00:01]} 49. Kf4 {[%emt 0:00:03]} Kf7 {[%emt 0:00:08]} 50. Rd8 {[%emt 0:00:05]} Ke7 {[%emt 0:00:05]} 51. Rb8 {[%emt 0:00:10]} Ke6 {[%emt 0:00:06]} 52. a4 {[%emt 0:00:11]} Kd5 {[%emt 0:00:01]} 53. b5 {[%emt 0:00:08]} axb5 {[%emt 0:00:01]} 54. axb5 {[%emt 0:00:01]} Bxb5 {[%emt 0:00:01]} 55. Rxb7 {[%emt 0:00:04]} Kxc5 {[%emt 0:00:01]} 56. Rxb5+ {[%emt 0:00:04]} 1/2-1/2

[Event "Polish University-ch Teams 2024"]
[Site "Lublin"]
[Date "2024.02.24"]
[Round "2.19"]
[White "Dzida, Kamil"]
[Black "Suder, Jakub"]
[Result "0-1"]
[ECO "B30"]
[WhiteElo "2403"]
[BlackElo "2333"]
[Annotator "TA"]
[PlyCount "76"]
[EventDate "2024.02.22"]
[EventType "team-tourn"]
[EventCountry "POL"]
[SourceTitle "playchess.com"]
[Source "ChessBase"]
[SourceQuality "1"]
[TimeControl "900+5"]

{[%evp 11,76,45,51,37,50,46,92,98,104,95,92,96,140,145,208,205,251,168,236,206,277,264,273,138,191,171,176,108,108,115,97,86,161,158,227,152,179,30,409,0,0,-409,-408,-492,-484,-479,-495,-497,-501,-503,-474,-502,-501,-504,-501,-514,-505,-519,-509,-544,-560,-1178,-1096,-29985,-29986,-29995,-29996]} 1. e4 {[%emt 0:00:01]} c5 {[%emt 0:00:00]} 2. Nf3 {[%emt 0:00:02]} Nc6 {[%emt 0:00:01]} 3. Bb5 {[%emt 0:00:01]} Nf6 {[%emt 0:00:02]} 4. Nc3 {[%emt 0:00:12]} Qc7 {[%emt 0:00:01]} 5. O-O {[%emt 0:00:35]} Nd4 {[%emt 0:00:02]} 6. Re1 {[%emt 0:00:18]} a6 {[%emt 0:00:04]} 7. Bf1 {[%emt 0:00:17] And now e5 would win.} Ng4 {[%emt 0:00:02]} 8. e5 {[%emt 0:01:31] Nxd4 is the strong threat.} d6 {[%emt 0:02:03] [#]} (8... Nxf3+ $14 9. Qxf3 Nxe5) 9. exd6 $1 $16 {[%emt 0:04:31] White is better.} Qxd6 {[%emt 0:00:13] ( -> ...Nxf3+)} 10. g3 {[%emt 0:00:01]} Nf6 {[%emt 0:01:25]} 11. Ne5 {[%emt 0:01:21] Against Bg4} g5 {[%emt 0:00:01]} 12. d3 {[%emt 0:00:17]} Rg8 {[%emt 0:00:51]} (12... h6 $16) 13. Bg2 $18 {[%emt 0:00:12]} h5 {[%emt 0:01:03]} 14. a4 {[%emt 0:00:30]} h4 {[%emt 0:00:15]} (14... Be6 $142 15. Bxb7 Rd8) 15. a5 {[%emt 0:00:01]} Rb8 {[%emt 0:01:37]} 16. Nc4 {[%emt 0:01:37]} Qc7 {[%emt 0:00:21]} 17. Nb6 {[%emt 0:00:04]} ({White should play} 17. Nd5 $18 Nxd5 18. Bxd5) 17... Be6 {[%emt 0:00:22]} (17... Bg4 $16 18. Ncd5 Nxd5 19. Qxg4 Nxb6) 18. Be3 {[%emt 0:01:59]} Rd8 {[%emt 0:01:14]} 19. Bxd4 {[%emt 0:00:03]} ({Better is} 19. Ra4 $18) 19... cxd4 $16 {[%emt 0:00:52]} 20. Ne4 {[%emt 0:00:01]} Nxe4 {[%emt 0:00:18]} 21. Rxe4 {[%emt 0:00:11]} Bf5 {[%emt 0:00:48]} (21... Rg6 $16 {is a better defense.}) 22. Re1 $18 {[%emt 0:00:01]} g4 {[%emt 0:01:24] Dodges Qf3} (22... h3 $16) 23. Ra4 {[%emt 0:00:01]} (23. gxh4 Rh8 24. Qe2 Rxh4 $16) 23... Be6 {[%emt 0:01:08] [#] Dodges Nd5} 24. c3 {[%emt 0:02:25]} (24. gxh4 Rg6 $11) (24. Rxe6 $1 $18 fxe6 25. Rc4 (25. gxh4 Kf7 $11)) 24... h3 $2 {[%emt 0:00:20][%mdl 8192]} (24... dxc3 $11 {and Black stays safe.} 25. bxc3 Qxc3) 25. Bh1 $2 {[%emt 0:00:13]} (25. Rxe6 $1 $18 fxe6 26. Bxh3 (26. Rc4 Qe5 $11)) 25... dxc3 $11 {[%emt 0:00:30]} 26. Rae4 $2 {[%emt 0:00:01][%mdl 8192]} (26. bxc3 $11 {and White is okay.} Bg7 (26... Qxc3 27. Bxb7 Bg7 28. Bxa6 $11) 27. Rxe6 fxe6 28. Qxg4 (28. Rxg4 $2 Qxc3 29. Bxb7 Rxd3 $19) (28. Rc4 Qe5 $15) 28... Qxc3 29. Qh5+ Kf8 30. Qxh3) 26... c2 $19 {[%emt 0:00:36]} ({Don't do} 26... cxb2 27. R4e2 Bg7 28. Rxe6 fxe6 29. Qxg4 $19) 27. Qa1 {[%emt 0:00:11]} Bh6 {[%emt 0:00:22] Active counter play!} ({Don't take} 27... Rxd3 28. Qc1) 28. Qa4+ {[%emt 0:00:30]} Kf8 {[%emt 0:00:06]} 29. Rc4 {[%emt 0:00:05]} Bxc4 {[%emt 0:00:26]} ({Weaker is} 29... c1=R 30. Rexc1 Bxc4 31. Rxc4 $19) 30. Qxc2 {[%emt 0:00:01] [#]} Rxd3 $1 {[%emt 0:00:35]} 31. Nxc4 {[%emt 0:00:01]} Rd4 {[%emt 0:00:13]} 32. b3 {[%emt 0:00:01]} Rg6 {[%emt 0:00:10]} 33. Qf5 {[%emt 0:00:17]} Rf6 {[%emt 0:00:15]} 34. Qh7 {[%emt 0:00:03]} Bg7 {[%emt 0:00:02] Prevents Qh8+} 35. Qh5 {[%emt 0:00:10]} Qd7 {[%emt 0:00:09]} 36. Qc5 {[%emt 0:00:10]} Rd1 {[%emt 0:00:04]} 37. Qe3 {[%emt 0:00:06]} Re6 {[%emt 0:00:04]} 38. Qxe6 {[%emt 0:00:02]} fxe6 {[%emt 0:00:02] Quite a comeback for Black.   Weighted Error Value: White=0.64/Black=0.37.  Loses game:     	White=1     	Black=1      Missed win:     	White=1     	---        Mistake:       	White=3     	Black=6      Inaccurate:     	White=4     	Black=2      OK:         	White=7     	Black=11     Best:        	White=3     	Black=3      Strong:       	White=1     	---} 0-1

[Event "Polish University-ch Teams 2024"]
[Site "Lublin"]
[Date "2024.02.24"]
[Round "2.20"]
[White "Pniaczek, Marek"]
[Black "Klepek, Witold"]
[Result "0-1"]
[ECO "C02"]
[WhiteElo "2116"]
[BlackElo "2262"]
[Annotator "TA"]
[PlyCount "140"]
[EventDate "2024.02.22"]
[EventType "team-tourn"]
[EventCountry "POL"]
[SourceTitle "playchess.com"]
[Source "ChessBase"]
[SourceQuality "1"]
[TimeControl "900+5"]

{[%evp 75,140,-72,0,-79,-47,-68,-26,-83,0,0,0,0,0,5,27,0,0,-414,-428,-383,-417,-667,-642,-615,-331,-653,-653,-589,-572,-631,-645,-652,-652,-662,0,-427,0,-705,-570,-843,-809,-827,-670,-29973,-29974,-29979,-29980,-29979,-5472,-29984,-637,-622,-633,-617,-624,-591,-514,-494,-479,-481,-519,-507,-523,-877,-845,-829,-833]} 1. e4 {[%emt 0:00:03]} e6 {[%emt 0:00:02]} 2. d4 {[%emt 0:00:09]} d5 {[%emt 0:00:01]} 3. e5 {[%emt 0:00:00]} c5 {[%emt 0:00:11]} 4. c3 {[%emt 0:00:02]} Nc6 {[%emt 0:00:52]} 5. Nf3 {[%emt 0:00:07]} Bd7 {[%emt 0:00:01]} 6. Be2 {[%emt 0:00:06]} Nge7 {[%emt 0:00:19]} 7. Na3 {[%emt 0:00:09]} cxd4 {[%emt 0:00:02]} 8. cxd4 {[%emt 0:00:02]} Ng6 {[%emt 0:00:01] C02: Französische Verteidigung (Vorstoßvariante).} 9. h4 {[%emt 0:00:57]} Bb4+ {[%emt 0:01:03]} 10. Kf1 {[%emt 0:00:35]} Be7 {[%emt 0:01:05]} 11. h5 {[%emt 0:00:11]} Nh4 {[%emt 0:00:01]} 12. Nxh4 {[%emt 0:01:32]} Bxh4 {[%emt 0:00:01]} 13. h6 {[%emt 0:00:01]} g6 {[%emt 0:00:05]} 14. Be3 {[%emt 0:12:21]} O-O $146 {[%emt 0:00:06]} ({Predecessor:} 14... Be7 15. Nc2 f6 16. exf6 Bxf6 17. g3 Qb6 18. Kg2 Nd8 19. Qd2 Nf7 20. Ne1 O-O {½-½ Afek,Y (2325)-Grafl,F (2411) Monarch Assurance 13th 2004 (7)}) 15. Qd2 {[%emt 0:00:00]} Be7 {[%emt 0:00:11]} 16. Kg1 {[%emt 0:00:00]} Qa5 {[%emt 0:00:26]} 17. Nc2 {[%emt 0:00:00]} Rac8 {[%emt 0:00:19]} 18. Bd3 {[%emt 0:00:00]} f6 {[%emt 0:01:50]} 19. exf6 {[%emt 0:00:00]} Qxd2 {[%emt 0:00:21]} 20. Bxd2 {[%emt 0:00:00]} Bxf6 {[%emt 0:00:02]} 21. Bc3 {[%emt 0:00:00]} Ne7 {[%emt 0:00:16]} 22. Ne3 {[%emt 0:00:00]} Nf5 {[%emt 0:00:10]} 23. Nxf5 {[%emt 0:00:00]} gxf5 {[%emt 0:00:01]} 24. f4 {[%emt 0:00:00]} Kf7 {[%emt 0:00:07]} 25. Kf2 {[%emt 0:00:00]} Rg8 {[%emt 0:00:03]} 26. Be2 {[%emt 0:00:00]} b5 {[%emt 0:00:49]} 27. Bh5+ {[%emt 0:00:00]} Ke7 {[%emt 0:00:14]} 28. Bb4+ {[%emt 0:00:00]} Kd8 {[%emt 0:00:09]} 29. Ba5+ {[%emt 0:00:00]} Ke7 {[%emt 0:00:01]} 30. Bb4+ {[%emt 0:00:00]} Kd8 {[%emt 0:00:01]} 31. Bc5 {[%emt 0:00:00]} Be8 {[%emt 0:00:30]} 32. Bf3 {[%emt 0:00:00]} Rxc5 {[%emt 0:00:25]} 33. dxc5 {[%emt 0:00:00]} Bxb2 {[%emt 0:00:00]} 34. Rad1 {[%emt 0:00:00]} Ba3 {[%emt 0:00:01]} 35. Bxd5 {[%emt 0:00:00]} exd5 {[%emt 0:00:04]} 36. Rxd5+ {[%emt 0:00:00]} Kc8 {[%emt 0:00:49]} 37. Rxf5 {[%emt 0:00:04]} Bc6 {[%emt 0:00:01]} 38. Rg5 {[%emt 0:00:49]} Rf8 {[%emt 0:02:24]} (38... Rxg5 $1 $17 39. fxg5 Be8) 39. Rh4 {[%emt 0:00:22]} (39. Kg3 $11 {hält das Gleichgewicht.} Bb2 40. Rg7) 39... Rd8 {[%emt 0:00:16]} 40. Rh3 {[%emt 0:00:24]} Rd2+ {[%emt 0:00:45]} 41. Kf1 {[%emt 0:00:21]} (41. Ke1 $1 $11 Rxa2 (41... Rxg2 $2 42. Rxa3 Kb7 43. Rg7+ Rxg7 44. hxg7 $18) 42. Re3) 41... Rxa2 {[%emt 0:00:30]} ({Vorzuziehen ist} 41... Bb2 $1 $17 {Weiss muss nun ...b4 beachten.} 42. Rhg3 b4) 42. Re3 $11 {[%emt 0:00:10]} Ra1+ {[%emt 0:00:31]} 43. Ke2 {[%emt 0:00:01]} Bb4 {[%emt 0:00:32]} 44. Rg8+ {[%emt 0:00:04]} Kb7 {[%emt 0:00:07]} 45. Re7+ {[%emt 0:00:12]} Ka6 {[%emt 0:00:01]} 46. Rc7 $2 {[%emt 0:00:02][%mdl 8192] [#]} (46. Rxh7 $11 {und Weiss ist OK.} Ra2+ 47. Kd3 Ra3+ 48. Ke2 Ra2+ 49. Kd3 Ra3+ 50. Ke2 Ra2+) 46... Re1+ $1 $19 {[%emt 0:00:05]} 47. Kf2 {[%emt 0:00:02] [#]} Re6 $1 {[%emt 0:00:07]} (47... Bxc5+ $2 48. Kxe1 Bb4+ 49. Ke2 $18) 48. f5 {[%emt 0:00:12]} (48. Rxh7 Bxc5+ 49. Kg3 b4 $19) (48. Kf1 $142 Bxc5 (48... Rxh6 $2 49. Rgc8 $19) 49. Rgc8) 48... Bxc5+ $19 {[%emt 0:03:07]} 49. Kf1 {[%emt 0:00:01]} Rf6 {[%emt 0:00:00]} 50. g4 $2 {[%emt 0:00:02]} (50. Rgc8 Kb6 (50... Rxf5+ 51. Ke2 $17) 51. Rxh7) 50... Rxh6 $19 {[%emt 0:00:00]} 51. g5 {[%emt 0:00:09]} Rh1+ {[%emt 0:00:00]} 52. Ke2 {[%emt 0:00:01]} Rh2+ {[%emt 0:00:00]} 53. Kd3 {[%emt 0:00:04]} Rh3+ {[%emt 0:00:00]} 54. Ke2 {[%emt 0:00:01]} Rh2+ {[%emt 0:00:00]} 55. Kd3 $1 {[%emt 0:00:01]} Rh3+ {[%emt 0:00:00]} (55... Kb6 $142 56. Rgg7 Rh3+ 57. Ke2 Bf3+ 58. Kd2 Bb4+ 59. Ke3 Bd6) 56. Ke2 $1 $19 {[%emt 0:00:00]} Kb6 {[%emt 0:00:00]} 57. Rgc8 {[%emt 0:00:19]} Bf3+ {[%emt 0:00:00]} 58. Kd2 {[%emt 0:00:03]} Bb4+ {[%emt 0:00:00]} 59. Kc2 {[%emt 0:00:03]} Be4+ {[%emt 0:00:00]} 60. Kb2 {[%emt 0:00:00]} Rh2+ {[%emt 0:00:00]} 61. Kb3 {[%emt 0:00:01]} Bd6 {[%emt 0:00:00]} (61... a5 $142 62. Rc2 Rxc2 (62... Bxc2+ $2 63. Rxc2 Rxc2 64. Kxc2 $19) 63. Rxc2 Bxc2+ 64. Kxc2 Bf8 65. Kb3 a4+ 66. Kc3 b4+ 67. Kc4 a3 68. Kb3 Kb5 69. g6 hxg6 70. f6 Kc5 71. Kc2 a2 72. Kd3 a1=Q (72... a1=B 73. f7 b3 74. Kd2 Kc4 75. Kd1 Bc3 76. Kc1 g5 77. Kd1 Kd3 78. Kc1 g4 79. Kb1 g3 80. Kc1 g2 81. Kd1 g1=Q#) 73. Ke3 Qg1+ (73... Qxf6 74. Ke2 Kd4 75. Kd1 Qf2 76. Kc1 Kc3 77. Kd1 Qf1#) 74. Kd2 Qg2+ 75. Ke3 Bh6+ 76. Kd3 Qd2+ 77. Ke4 Qe3#) 62. Rd7 {[%emt 0:00:10]} Bd5+ {[%emt 0:00:00]} ({Und nicht} 62... Bxf5 63. Rxd6+ Ka5 64. Ra8 Rh3+ 65. Kb2 $11) (62... Be5 $142 63. g6 Bxf5 64. Rd5 Bxc8 65. Rxe5 hxg6 66. Re7 a5 67. Re8 Bd7 68. Re7 Bf5 69. Kc3 b4+ 70. Kb3 Rh3+ 71. Kc4 Rh4+ 72. Kd5 b3 73. Re2 Rb4 74. Rb2 a4 75. Ke5 a3 76. Rd2 a2 (76... b2 {ist ein Selbstmatt.} 77. Rd6+ Ka7 78. Rf6 Re4+ 79. Kd5 b1=Q 80. Rf7+) 77. Rd1 b2 78. Rd6+ Kb7 79. Rf6 b1=Q (79... b1=R 80. Rf7+ Kb8 81. Rf8+ Bc8 82. Rf3 a1=Q+ 83. Kd6 Rd1+ 84. Rd3 Rxd3+ 85. Ke7 Qg7+ 86. Ke8 Re4#) 80. Rf7+ Kc6 81. Rf6+ Kc5 (81... Kb5 82. Kd6 Qe1 83. Rxf5+ gxf5 84. Kc7 Qe7+ 85. Kb8 a1=Q 86. Kc8 Qh8#) 82. Rc6+ Kxc6 83. Kf6 a1=Q+ (83... a1=B+ $2 84. Kf7 Rb8 85. Ke7 Qb7#) 84. Ke7 Qg7+ 85. Ke8 Rb8#) 63. Kc3 $19 {[%emt 0:00:04]} Be5+ {[%emt 0:00:00]} 64. Kd3 {[%emt 0:00:01]} Rh3+ {[%emt 0:00:00]} 65. Ke2 {[%emt 0:00:04]} Bc4+ {[%emt 0:00:00]} 66. Kf2 {[%emt 0:00:04]} Rh5 {[%emt 0:00:00]} 67. Re8 {[%emt 0:00:25]} Bc3 {[%emt 0:00:00]} 68. f6 {[%emt 0:00:07]} Rxg5 {[%emt 0:00:06]} 69. f7 {[%emt 0:00:12]} Rf5+ {[%emt 0:00:03]} 70. Ke3 {[%emt 0:00:00]} Rxf7 {[%emt 0:01:41]} 0-1